[Event "*** Titled Tuesday Blitz"]
[Site "Chess.com"]
[Date "2020.04.21"]
[Round "3"]
[White "TheSodabread"]
[Black "MichailovM"]
[Result "0-1"]
[WhiteElo "1875"]
[BlackElo "2304"]
[TimeControl "180+1"]
[EndTime "10:28:26 PDT"]
[Termination "MichailovM won on time"]

1. d4 {[%clk 0:03:00.9]} 1... Nf6 {[%clk 0:02:59.3]} 2. Nc3 {[%clk 0:03:00.6]}
2... d5 {[%clk 0:02:59]} 3. Bf4 {[%clk 0:02:55.3]} 3... c6 {[%clk 0:02:59.3]} 4.
e3 {[%clk 0:02:51.8]} 4... Bf5 {[%clk 0:02:59.4]} 5. f3 {[%clk 0:02:51.2]} 5...
h5 {[%clk 0:02:59.5]} 6. Bd3 {[%clk 0:02:50.1]} 6... Bxd3 {[%clk 0:02:57.7]} 7.
Qxd3 {[%clk 0:02:51]} 7... e6 {[%clk 0:02:57.4]} 8. Nge2 {[%clk 0:02:50.5]} 8...
Na6 {[%clk 0:02:56.2]} 9. a3 {[%clk 0:02:49.4]} 9... Be7 {[%clk 0:02:55.2]} 10.
O-O {[%clk 0:02:48.3]} 10... b5 {[%clk 0:02:42.3]} 11. b4 {[%clk 0:02:41.2]}
11... O-O {[%clk 0:02:33.3]} 12. e4 {[%clk 0:02:37.4]} 12... Nc7 {[%clk
0:02:31.2]} 13. e5 {[%clk 0:02:19]} 13... Nd7 {[%clk 0:02:25]} 14. Na2 {[%clk
0:01:59.1]} 14... a5 {[%clk 0:02:19.1]} 15. c3 {[%clk 0:01:48.7]} 15... axb4
{[%clk 0:02:19]} 16. Nxb4 {[%clk 0:01:44.6]} 16... Bxb4 {[%clk 0:02:10.1]} 17.
axb4 {[%clk 0:01:45.5]} 17... Nb6 {[%clk 0:02:07.3]} 18. Ng3 {[%clk 0:01:39.3]}
18... h4 {[%clk 0:02:06.5]} 19. Nh5 {[%clk 0:01:30.2]} 19... Nc4 {[%clk
0:01:53]} 20. g4 {[%clk 0:00:57.4]} 20... hxg3 {[%clk 0:00:56.6]} 21. hxg3
{[%clk 0:00:58.3]} 21... Qe7 {[%clk 0:00:56.6]} 22. Kg2 {[%clk 0:00:53.3]} 22...
Rxa1 {[%clk 0:00:53.2]} 23. Rxa1 {[%clk 0:00:52.2]} 23... Ra8 {[%clk 0:00:54.1]}
24. Rh1 {[%clk 0:00:25.8]} 24... Ra2+ {[%clk 0:00:53.9]} 25. Kh3 {[%clk
0:00:26.2]} 25... Ne8 {[%clk 0:00:45.4]} 26. Kg4 {[%clk 0:00:25]} 26... f5+
{[%clk 0:00:44.1]} 27. exf6 {[%clk 0:00:24.7]} 27... Nxf6+ {[%clk 0:00:44.3]}
28. Nxf6+ {[%clk 0:00:23.3]} 28... Qxf6 {[%clk 0:00:45.2]} 29. Qh7+ {[%clk
0:00:19.2]} 29... Kf7 {[%clk 0:00:43.5]} 30. Bg5 {[%clk 0:00:11.6]} 30... Qg6
{[%clk 0:00:35.6]} 31. Qh8 {[%clk 0:00:05.3]} 31... Ne3+ {[%clk 0:00:34.6]} 0-1

[Event "*** Titled Tuesday Blitz"]
[Site "Chess.com"]
[Date "2020.04.21"]
[Round "3"]
[White "Noam_Vitenberg"]
[Black "avocadosheena"]
[Result "1-0"]
[WhiteElo "2502"]
[BlackElo "2133"]
[TimeControl "180+1"]
[EndTime "10:28:27 PDT"]
[Termination "Noam_Vitenberg won on time"]

1. d4 {[%clk 0:03:00.9]} 1... d5 {[%clk 0:02:59.2]} 2. c4 {[%clk 0:02:56.2]}
2... c6 {[%clk 0:02:56.3]} 3. cxd5 {[%clk 0:02:51.9]} 3... cxd5 {[%clk 0:02:56]}
4. Nc3 {[%clk 0:02:51.5]} 4... Nf6 {[%clk 0:02:49.6]} 5. Bf4 {[%clk 0:02:38.9]}
5... Nc6 {[%clk 0:02:46.3]} 6. e3 {[%clk 0:02:38]} 6... a6 {[%clk 0:02:44]} 7.
Bd3 {[%clk 0:02:37]} 7... Bg4 {[%clk 0:02:01.3]} 8. Qb3 {[%clk 0:02:34.4]} 8...
Na5 {[%clk 0:02:00.2]} 9. Qa4+ {[%clk 0:02:16.9]} 9... Bd7 {[%clk 0:01:59.4]}
10. Qc2 {[%clk 0:02:14.9]} 10... e6 {[%clk 0:01:52.6]} 11. Nf3 {[%clk 0:02:05]}
11... Be7 {[%clk 0:01:47.9]} 12. O-O {[%clk 0:02:02.3]} 12... h6 {[%clk
0:01:30.6]} 13. h3 {[%clk 0:02:00.1]} 13... O-O {[%clk 0:01:28.6]} 14. Rac1
{[%clk 0:01:58.1]} 14... Nc6 {[%clk 0:01:28.8]} 15. Qe2 {[%clk 0:01:51.5]} 15...
Rc8 {[%clk 0:00:50.1]} 16. a3 {[%clk 0:01:42.3]} 16... Na5 {[%clk 0:00:42.6]}
17. Ne5 {[%clk 0:01:40.5]} 17... b5 {[%clk 0:00:30.1]} 18. Rc2 {[%clk 0:01:32]}
18... Nc4 {[%clk 0:00:28.6]} 19. a4 {[%clk 0:01:27.6]} 19... bxa4 {[%clk
0:00:17.7]} 20. Nxc4 {[%clk 0:01:21.1]} 20... dxc4 {[%clk 0:00:18.6]} 21. Bxc4
{[%clk 0:01:21.4]} 21... Qb6 {[%clk 0:00:10.5]} 22. Bxa6 {[%clk 0:01:19.3]}
22... Ra8 {[%clk 0:00:09.9]} 23. Bd3 {[%clk 0:01:18.1]} 23... Rfc8 {[%clk
0:00:08.3]} 24. Rfc1 {[%clk 0:01:17.6]} 24... a3 {[%clk 0:00:06.9]} 25. bxa3
{[%clk 0:01:14.8]} 25... Bxa3 {[%clk 0:00:07.3]} 26. Rb1 {[%clk 0:01:14.4]}
26... Qd8 {[%clk 0:00:06.5]} 27. Nb5 {[%clk 0:01:06.9]} 27... Bxb5 {[%clk
0:00:05.8]} 28. Rxb5 {[%clk 0:00:59.9]} 28... Bd6 {[%clk 0:00:04.1]} 29. Bxd6
{[%clk 0:00:38.4]} 29... Qxd6 {[%clk 0:00:05]} 30. Rb1 {[%clk 0:00:30.8]} 30...
Qd7 {[%clk 0:00:02.3]} 31. Rbc1 {[%clk 0:00:29.5]} 31... Rxc2 {[%clk 0:00:01.7]}
32. Qxc2 {[%clk 0:00:30.3]} 32... Nd5 {[%clk 0:00:02.2]} 33. Be4 {[%clk
0:00:27.1]} 33... Rd8 {[%clk 0:00:01.1]} 34. Qc6 {[%clk 0:00:24]} 1-0

[Event "*** Titled Tuesday Blitz"]
[Site "Chess.com"]
[Date "2020.04.21"]
[Round "3"]
[White "SmirnovAlexandrA"]
[Black "D0wnpour"]
[Result "0-1"]
[WhiteElo "2381"]
[BlackElo "2604"]
[TimeControl "180+1"]
[EndTime "10:28:30 PDT"]
[Termination "D0wnpour won by resignation"]

1. e4 {[%clk 0:03:00.9]} 1... c5 {[%clk 0:02:56.4]} 2. Nf3 {[%clk 0:03:00.4]}
2... e6 {[%clk 0:02:56.9]} 3. d4 {[%clk 0:03:00]} 3... cxd4 {[%clk 0:02:57.8]}
4. Nxd4 {[%clk 0:03:00.7]} 4... a6 {[%clk 0:02:57.9]} 5. Nc3 {[%clk 0:03:00.8]}
5... Qc7 {[%clk 0:02:58.1]} 6. g3 {[%clk 0:03:00.9]} 6... Bb4 {[%clk 0:02:57.7]}
7. Ne2 {[%clk 0:02:50.8]} 7... Nf6 {[%clk 0:02:55.5]} 8. Bg2 {[%clk 0:02:50.9]}
8... O-O {[%clk 0:02:56.2]} 9. O-O {[%clk 0:02:50.8]} 9... Be7 {[%clk
0:02:56.9]} 10. Nd4 {[%clk 0:02:47.4]} 10... d6 {[%clk 0:02:56.7]} 11. Re1
{[%clk 0:02:47.1]} 11... Nc6 {[%clk 0:02:57.3]} 12. Nxc6 {[%clk 0:02:46.5]}
12... bxc6 {[%clk 0:02:58.2]} 13. e5 {[%clk 0:02:42.2]} 13... dxe5 {[%clk
0:02:55.9]} 14. Na4 {[%clk 0:02:40.3]} 14... Nd7 {[%clk 0:02:52.5]} 15. c4
{[%clk 0:02:36.3]} 15... Nc5 {[%clk 0:02:40.3]} 16. Nc3 {[%clk 0:02:31.9]} 16...
Bb7 {[%clk 0:02:38.9]} 17. b4 {[%clk 0:02:27.9]} 17... Rfd8 {[%clk 0:02:37.6]}
18. Qc2 {[%clk 0:02:24.6]} 18... Nd3 {[%clk 0:02:37.7]} 19. Re3 {[%clk
0:02:16.1]} 19... Nxc1 {[%clk 0:02:33.5]} 20. Rxc1 {[%clk 0:02:17]} 20... Bg5
{[%clk 0:02:32.9]} 21. c5 {[%clk 0:02:12.9]} 21... Bxe3 {[%clk 0:02:28.5]} 22.
fxe3 {[%clk 0:02:13.8]} 22... f5 {[%clk 0:02:20.1]} 23. Na4 {[%clk 0:02:08.9]}
23... e4 {[%clk 0:01:40.5]} 24. Nb6 {[%clk 0:02:08.3]} 24... Rab8 {[%clk
0:01:41]} 25. Nc4 {[%clk 0:01:58.8]} 25... Rd5 {[%clk 0:01:35.5]} 26. Nd6 {[%clk
0:01:58.1]} 26... Rd8 {[%clk 0:01:26.9]} 27. Bf1 {[%clk 0:01:55.9]} 27... R8xd6
{[%clk 0:01:21.5]} 28. cxd6 {[%clk 0:01:55.4]} 28... Qxd6 {[%clk 0:01:22.4]} 29.
Bc4 {[%clk 0:01:52.9]} 29... Rd2 {[%clk 0:01:22.5]} 30. Bxe6+ {[%clk 0:01:52.4]}
30... Kf8 {[%clk 0:01:23.1]} 31. Qc5 {[%clk 0:01:46.6]} 31... Qxc5 {[%clk
0:01:20.8]} 32. Rxc5 {[%clk 0:01:47.5]} 32... g6 {[%clk 0:01:21.3]} 33. Rc3
{[%clk 0:01:23.1]} 33... Ke7 {[%clk 0:01:18.3]} 34. Bg8 {[%clk 0:01:22.7]} 34...
h6 {[%clk 0:01:18.5]} 35. h4 {[%clk 0:01:20.9]} 35... g5 {[%clk 0:00:58]} 36.
hxg5 {[%clk 0:01:21.8]} 36... hxg5 {[%clk 0:00:58.3]} 37. a3 {[%clk 0:01:15.3]}
37... Kd6 {[%clk 0:00:53.7]} 38. Bh7 {[%clk 0:01:13]} 38... Bc8 {[%clk
0:00:53.8]} 39. Bg8 {[%clk 0:01:10.7]} 39... Rd3 {[%clk 0:00:40.4]} 40. Rxd3+
{[%clk 0:01:02.2]} 40... exd3 {[%clk 0:00:41.3]} 41. Kf2 {[%clk 0:01:02.4]}
41... Be6 {[%clk 0:00:39.9]} 42. Bxe6 {[%clk 0:00:54]} 42... Kxe6 {[%clk
0:00:40.8]} 43. Ke1 {[%clk 0:00:53.4]} 43... Ke5 {[%clk 0:00:38.7]} 44. Kd2
{[%clk 0:00:53.2]} 44... Ke4 {[%clk 0:00:39]} 45. a4 {[%clk 0:00:53.2]} 45... g4
{[%clk 0:00:38.4]} 46. a5 {[%clk 0:00:52.3]} 46... Kf3 {[%clk 0:00:37.2]} 47.
Kxd3 {[%clk 0:00:51.9]} 47... Kxg3 {[%clk 0:00:37.8]} 48. Kd4 {[%clk 0:00:50.2]}
48... Kf3 {[%clk 0:00:37.4]} 49. Ke5 {[%clk 0:00:50.2]} 49... g3 {[%clk
0:00:37.6]} 50. b5 {[%clk 0:00:51.1]} 50... g2 {[%clk 0:00:38.2]} 51. bxc6
{[%clk 0:00:42.3]} 51... g1=Q {[%clk 0:00:39.1]} 52. c7 {[%clk 0:00:39.1]} 52...
Qg3+ {[%clk 0:00:38.7]} 0-1

[Event "*** Titled Tuesday Blitz"]
[Site "Chess.com"]
[Date "2020.04.21"]
[Round "3"]
[White "ChelsieMonica"]
[Black "MisiekZielony"]
[Result "1-0"]
[WhiteElo "2311"]
[BlackElo "2037"]
[TimeControl "180+1"]
[EndTime "10:28:30 PDT"]
[Termination "ChelsieMonica won on time"]

1. c4 {[%clk 0:03:00.9]} 1... c6 {[%clk 0:02:59.4]} 2. Nc3 {[%clk 0:03:00.8]}
2... d5 {[%clk 0:02:59.6]} 3. cxd5 {[%clk 0:03:01.7]} 3... cxd5 {[%clk
0:02:59.7]} 4. e3 {[%clk 0:03:01.9]} 4... Nf6 {[%clk 0:02:59.7]} 5. Nf3 {[%clk
0:03:01.2]} 5... Nc6 {[%clk 0:02:59.5]} 6. Be2 {[%clk 0:03:01]} 6... e6 {[%clk
0:02:53]} 7. O-O {[%clk 0:02:58.8]} 7... Bd6 {[%clk 0:02:52.6]} 8. b3 {[%clk
0:02:57]} 8... O-O {[%clk 0:02:52.1]} 9. Bb2 {[%clk 0:02:56.5]} 9... b6 {[%clk
0:02:43.2]} 10. Rc1 {[%clk 0:02:49.7]} 10... Bb7 {[%clk 0:02:42.8]} 11. Nb5
{[%clk 0:02:47.8]} 11... Be7 {[%clk 0:02:41.4]} 12. Ne5 {[%clk 0:02:43.6]} 12...
Nxe5 {[%clk 0:02:14.8]} 13. Bxe5 {[%clk 0:02:40.1]} 13... a6 {[%clk 0:02:14.5]}
14. Bc7 {[%clk 0:02:23]} 14... Qd7 {[%clk 0:02:14]} 15. Nd4 {[%clk 0:02:19.8]}
15... Bc5 {[%clk 0:02:11.4]} 16. Be5 {[%clk 0:02:17.7]} 16... Ne8 {[%clk
0:02:06.1]} 17. Bg4 {[%clk 0:02:14.3]} 17... Bd6 {[%clk 0:02:04.4]} 18. f4
{[%clk 0:02:05.8]} 18... f5 {[%clk 0:02:01.7]} 19. Bf3 {[%clk 0:02:03.5]} 19...
Nf6 {[%clk 0:01:48.3]} 20. Bxd6 {[%clk 0:02:00.8]} 20... Qxd6 {[%clk 0:01:48]}
21. Qe2 {[%clk 0:02:01.2]} 21... Rfc8 {[%clk 0:01:45.6]} 22. g4 {[%clk
0:01:55.1]} 22... g6 {[%clk 0:01:37.4]} 23. gxf5 {[%clk 0:01:53.8]} 23... gxf5
{[%clk 0:01:37.1]} 24. Kf2 {[%clk 0:01:52.6]} 24... Kh8 {[%clk 0:01:36.4]} 25.
Rg1 {[%clk 0:01:51.5]} 25... Rg8 {[%clk 0:01:28]} 26. Rg3 {[%clk 0:01:48.4]}
26... Rxg3 {[%clk 0:01:07.7]} 27. hxg3 {[%clk 0:01:48.1]} 27... Rg8 {[%clk
0:01:07]} 28. Rh1 {[%clk 0:01:45.1]} 28... Rg6 {[%clk 0:00:52.9]} 29. Qf1 {[%clk
0:01:30.1]} 29... Qe7 {[%clk 0:00:32.5]} 30. Qh3 {[%clk 0:01:26.4]} 30... Qf7
{[%clk 0:00:29]} 31. Qh4 {[%clk 0:01:19.5]} 31... Qd7 {[%clk 0:00:24.3]} 32. d3
{[%clk 0:01:12.4]} 32... Qd6 {[%clk 0:00:21.4]} 33. Be2 {[%clk 0:01:10.9]} 33...
Qe7 {[%clk 0:00:15.6]} 34. Kf1 {[%clk 0:01:01.7]} 34... Qd6 {[%clk 0:00:14.8]}
35. Nf3 {[%clk 0:00:58.5]} 35... d4 {[%clk 0:00:13.9]} 36. Ne5 {[%clk
0:00:52.4]} 36... Bxh1 {[%clk 0:00:09.8]} 37. Nf7+ {[%clk 0:00:51]} 1-0

[Event "*** Titled Tuesday Blitz"]
[Site "Chess.com"]
[Date "2020.04.21"]
[Round "3"]
[White "KrolPawel92OnTwitch"]
[Black "HansCoolNiemann"]
[Result "1-0"]
[WhiteElo "2697"]
[BlackElo "2945"]
[TimeControl "180+1"]
[EndTime "10:28:32 PDT"]
[Termination "KrolPawel92OnTwitch won by resignation"]

1. e4 {[%clk 0:03:00.9]} 1... c5 {[%clk 0:02:48.7]} 2. Nf3 {[%clk 0:03:00.7]}
2... Nc6 {[%clk 0:02:48.9]} 3. g3 {[%clk 0:03:00.4]} 3... g6 {[%clk 0:02:43.4]}
4. Bg2 {[%clk 0:02:59.9]} 4... Bg7 {[%clk 0:02:44]} 5. O-O {[%clk 0:03:00.2]}
5... e6 {[%clk 0:02:44.7]} 6. c3 {[%clk 0:03:00]} 6... Nge7 {[%clk 0:02:42.6]}
7. d4 {[%clk 0:02:59.5]} 7... cxd4 {[%clk 0:02:39.4]} 8. cxd4 {[%clk 0:02:58.9]}
8... d5 {[%clk 0:02:39.9]} 9. e5 {[%clk 0:02:57.8]} 9... O-O {[%clk 0:02:39.7]}
10. Nc3 {[%clk 0:02:58]} 10... b6 {[%clk 0:02:36.1]} 11. h4 {[%clk 0:02:57.8]}
11... Ba6 {[%clk 0:02:36]} 12. Re1 {[%clk 0:02:57.8]} 12... h6 {[%clk
0:02:33.1]} 13. Nh2 {[%clk 0:02:46.2]} 13... Nf5 {[%clk 0:02:31.6]} 14. Be3
{[%clk 0:02:29.7]} 14... Nxe3 {[%clk 0:02:22]} 15. fxe3 {[%clk 0:02:30.6]} 15...
f5 {[%clk 0:02:14.3]} 16. Qa4 {[%clk 0:02:24.7]} 16... Qc8 {[%clk 0:01:52.8]}
17. Nxd5 {[%clk 0:02:22.7]} 17... b5 {[%clk 0:01:40]} 18. Qc2 {[%clk 0:02:12.6]}
18... Bb7 {[%clk 0:01:29.1]} 19. Qxc6 {[%clk 0:01:57.7]} 19... Bxc6 {[%clk
0:01:07.5]} 20. Ne7+ {[%clk 0:01:57.7]} 20... Kf7 {[%clk 0:01:07.6]} 21. Nxc8
{[%clk 0:01:57.8]} 21... Rfxc8 {[%clk 0:01:04.2]} 22. Rac1 {[%clk 0:01:53.9]}
22... Bxg2 {[%clk 0:01:03.5]} 23. Kxg2 {[%clk 0:01:53.7]} 23... Bf8 {[%clk
0:01:04.1]} 24. Nf3 {[%clk 0:01:45.8]} 24... Bb4 {[%clk 0:01:03.2]} 25. Red1
{[%clk 0:01:45.4]} 25... Be7 {[%clk 0:00:54.8]} 26. Kf2 {[%clk 0:01:40.5]} 26...
g5 {[%clk 0:00:55]} 27. Ke2 {[%clk 0:01:33.1]} 27... gxh4 {[%clk 0:00:46.9]} 28.
gxh4 {[%clk 0:01:33.1]} 28... Rg8 {[%clk 0:00:40.5]} 29. Rg1 {[%clk 0:01:21]}
29... Rg4 {[%clk 0:00:37.1]} 30. Rcf1 {[%clk 0:01:03.3]} 30... Rag8 {[%clk
0:00:34.1]} 31. Ng5+ {[%clk 0:01:03.2]} 31... Ke8 {[%clk 0:00:20.1]} 32. Rxg4
{[%clk 0:01:00.1]} 32... fxg4 {[%clk 0:00:21]} 33. Nxe6 {[%clk 0:00:59.2]} 33...
Bxh4 {[%clk 0:00:21.1]} 34. d5 {[%clk 0:00:58.7]} 34... Ke7 {[%clk 0:00:20.5]}
35. Nd4 {[%clk 0:00:57.2]} 35... Bg5 {[%clk 0:00:20.4]} 36. d6+ {[%clk
0:00:55.1]} 36... Ke8 {[%clk 0:00:18.3]} 37. e6 {[%clk 0:00:51.8]} 37... g3
{[%clk 0:00:18.2]} 38. Nc6 {[%clk 0:00:49.2]} 38... Rg7 {[%clk 0:00:08.4]} 39.
d7+ {[%clk 0:00:48.6]} 39... Rxd7 {[%clk 0:00:08.9]} 40. exd7+ {[%clk 0:00:49]}
40... Kxd7 {[%clk 0:00:09.8]} 41. Ne5+ {[%clk 0:00:49]} 41... Ke6 {[%clk
0:00:10.2]} 42. Nf3 {[%clk 0:00:48]} 42... Be7 {[%clk 0:00:10.2]} 43. Rh1 {[%clk
0:00:44.3]} 43... Bf8 {[%clk 0:00:08]} 44. Rh3 {[%clk 0:00:43.8]} 1-0

[Event "*** Titled Tuesday Blitz"]
[Site "Chess.com"]
[Date "2020.04.21"]
[Round "3"]
[White "Piotrek1979"]
[Black "norwaytoadog"]
[Result "1-0"]
[WhiteElo "2439"]
[BlackElo "2207"]
[TimeControl "180+1"]
[EndTime "10:28:32 PDT"]
[Termination "Piotrek1979 won on time"]

1. Nf3 {[%clk 0:03:00.9]} 1... Nf6 {[%clk 0:02:53.5]} 2. g3 {[%clk 0:03:01.8]}
2... e6 {[%clk 0:02:52.8]} 3. Bg2 {[%clk 0:03:02.7]} 3... d5 {[%clk 0:02:46.6]}
4. O-O {[%clk 0:03:03.6]} 4... b5 {[%clk 0:02:46.2]} 5. a4 {[%clk 0:03:02.8]}
5... b4 {[%clk 0:02:45.8]} 6. d3 {[%clk 0:03:03.7]} 6... a5 {[%clk 0:02:41.9]}
7. e4 {[%clk 0:03:03.4]} 7... Bb7 {[%clk 0:02:41.2]} 8. Re1 {[%clk 0:03:01]}
8... Be7 {[%clk 0:02:40.6]} 9. Nbd2 {[%clk 0:02:58.9]} 9... O-O {[%clk
0:02:40.5]} 10. e5 {[%clk 0:02:59.1]} 10... Nfd7 {[%clk 0:02:40.4]} 11. h4
{[%clk 0:02:58.9]} 11... c5 {[%clk 0:02:40.1]} 12. Nf1 {[%clk 0:02:59]} 12...
Nc6 {[%clk 0:02:24.3]} 13. Bf4 {[%clk 0:02:58.7]} 13... d4 {[%clk 0:02:13.6]}
14. N1h2 {[%clk 0:02:53.9]} 14... Nb6 {[%clk 0:02:12.5]} 15. Ng4 {[%clk
0:02:53.9]} 15... Nd5 {[%clk 0:02:12.4]} 16. Bg5 {[%clk 0:02:54.1]} 16... h5
{[%clk 0:02:02]} 17. Nh6+ {[%clk 0:02:39.7]} 17... Kh7 {[%clk 0:01:39.4]} 18.
Bxe7 {[%clk 0:02:23.6]} 18... Qxe7 {[%clk 0:01:34.6]} 19. Nxf7 {[%clk
0:02:23.5]} 19... Rxf7 {[%clk 0:01:30.7]} 20. Ng5+ {[%clk 0:02:23.5]} 20... Kg8
{[%clk 0:01:28.6]} 21. Qxh5 {[%clk 0:02:23.4]} 21... g6 {[%clk 0:01:01.6]} 22.
Qxg6+ {[%clk 0:02:23.5]} 22... Rg7 {[%clk 0:00:58]} 23. Qxe6+ {[%clk 0:02:23.5]}
23... Qxe6 {[%clk 0:00:45.3]} 24. Nxe6 {[%clk 0:02:24.4]} 24... Nce7 {[%clk
0:00:35.2]} 25. Nxg7 {[%clk 0:02:17.6]} 25... Kxg7 {[%clk 0:00:35.3]} 26. Re4
{[%clk 0:02:06.3]} 26... Rf8 {[%clk 0:00:30.4]} 27. Rae1 {[%clk 0:02:01.5]}
27... Bc8 {[%clk 0:00:26.9]} 28. e6 {[%clk 0:02:01.2]} 28... b3 {[%clk
0:00:23.6]} 29. Rg4+ {[%clk 0:01:54.4]} 29... Kf6 {[%clk 0:00:23.2]} 30. Rg5
{[%clk 0:01:28.9]} 30... Nb4 {[%clk 0:00:18.8]} 31. cxb3 {[%clk 0:01:09.6]}
31... Nxd3 {[%clk 0:00:18.5]} 32. Re4 {[%clk 0:01:09]} 32... Bxe6 {[%clk
0:00:11.9]} 33. Bf1 {[%clk 0:01:01.1]} 33... c4 {[%clk 0:00:10.1]} 34. bxc4
{[%clk 0:00:55.1]} 34... Bxc4 {[%clk 0:00:10.3]} 35. Bxd3 {[%clk 0:00:55.3]}
35... Bxd3 {[%clk 0:00:09.2]} 36. Rf4+ {[%clk 0:00:55.7]} 36... Ke6 {[%clk
0:00:09.5]} 37. Rxf8 {[%clk 0:00:55.4]} 37... Bf5 {[%clk 0:00:09.4]} 38. Rgxf5
{[%clk 0:00:52.6]} 38... Nxf5 {[%clk 0:00:08.4]} 39. Rxf5 {[%clk 0:00:53.5]}
39... Kxf5 {[%clk 0:00:07.7]} 40. Kf1 {[%clk 0:00:53.8]} 40... Ke4 {[%clk
0:00:06.2]} 41. Ke1 {[%clk 0:00:53.9]} 41... d3 {[%clk 0:00:05.3]} 42. Kd2
{[%clk 0:00:53.8]} 42... Kd4 {[%clk 0:00:05.3]} 43. b3 {[%clk 0:00:53.7]} 43...
Ke4 {[%clk 0:00:04.5]} 44. h5 {[%clk 0:00:54.1]} 1-0

[Event "*** Titled Tuesday Blitz"]
[Site "Chess.com"]
[Date "2020.04.21"]
[Round "3"]
[White "TigrVShlyape"]
[Black "Sammed_Shete"]
[Result "1-0"]
[WhiteElo "2865"]
[BlackElo "2571"]
[TimeControl "180+1"]
[EndTime "10:28:33 PDT"]
[Termination "TigrVShlyape won by resignation"]

1. d4 {[%clk 0:03:00.9]} 1... Nf6 {[%clk 0:02:59.4]} 2. Nf3 {[%clk 0:03:01.3]}
2... e6 {[%clk 0:02:59.3]} 3. Bf4 {[%clk 0:03:01.6]} 3... b6 {[%clk 0:02:57.8]}
4. e3 {[%clk 0:03:01.2]} 4... Bb7 {[%clk 0:02:58.3]} 5. h3 {[%clk 0:02:59.1]}
5... d6 {[%clk 0:02:57.8]} 6. a4 {[%clk 0:02:58.7]} 6... a5 {[%clk 0:02:57.1]}
7. Bb5+ {[%clk 0:02:55.6]} 7... Nbd7 {[%clk 0:02:56.6]} 8. O-O {[%clk
0:02:54.6]} 8... Be7 {[%clk 0:02:56.9]} 9. Nbd2 {[%clk 0:02:52.9]} 9... O-O
{[%clk 0:02:57.1]} 10. Re1 {[%clk 0:02:52.8]} 10... Ne4 {[%clk 0:02:56.1]} 11.
Nxe4 {[%clk 0:02:50]} 11... Bxe4 {[%clk 0:02:57]} 12. Nd2 {[%clk 0:02:49.9]}
12... Bb7 {[%clk 0:02:57.1]} 13. e4 {[%clk 0:02:45.8]} 13... e5 {[%clk
0:02:51.5]} 14. dxe5 {[%clk 0:02:28.8]} 14... Nxe5 {[%clk 0:02:42.9]} 15. Nb3
{[%clk 0:01:55]} 15... Bg5 {[%clk 0:02:17.2]} 16. Qd2 {[%clk 0:01:15.6]} 16...
Bxf4 {[%clk 0:02:12.7]} 17. Qxf4 {[%clk 0:01:15.2]} 17... Ng6 {[%clk 0:02:11.7]}
18. Qg3 {[%clk 0:01:08.1]} 18... Qf6 {[%clk 0:02:07]} 19. c3 {[%clk 0:01:04.4]}
19... c6 {[%clk 0:01:45.3]} 20. Bf1 {[%clk 0:01:01.5]} 20... Rfe8 {[%clk
0:01:41.3]} 21. Rad1 {[%clk 0:00:57.5]} 21... Rad8 {[%clk 0:01:37.2]} 22. f3
{[%clk 0:00:45.4]} 22... Nf4 {[%clk 0:01:31.1]} 23. Nd4 {[%clk 0:00:37]} 23...
d5 {[%clk 0:01:23.2]} 24. Nf5 {[%clk 0:00:31.1]} 24... Ng6 {[%clk 0:01:11]} 25.
Qc7 {[%clk 0:00:29.1]} 25... Bc8 {[%clk 0:00:53]} 26. Qxb6 {[%clk 0:00:28.1]}
26... Bxf5 {[%clk 0:00:37.4]} 27. exf5 {[%clk 0:00:27.2]} 27... Nf4 {[%clk
0:00:37.5]} 28. g3 {[%clk 0:00:12.6]} 28... Nh5 {[%clk 0:00:26.5]} 29. Kf2
{[%clk 0:00:12.6]} 29... Qxf5 {[%clk 0:00:22.2]} 30. Qxc6 {[%clk 0:00:08.9]}
30... Rxe1 {[%clk 0:00:20.2]} 31. Rxe1 {[%clk 0:00:08.7]} 31... Qg5 {[%clk
0:00:15]} 32. Re8+ {[%clk 0:00:06.2]} 1-0

[Event "*** Titled Tuesday Blitz"]
[Site "Chess.com"]
[Date "2020.04.21"]
[Round "3"]
[White "SlavenPastar"]
[Black "doons21"]
[Result "0-1"]
[WhiteElo "2407"]
[BlackElo "2618"]
[TimeControl "180+1"]
[EndTime "10:28:34 PDT"]
[Termination "doons21 won on time"]

1. d4 {[%clk 0:03:00.9]} 1... Nf6 {[%clk 0:02:56.1]} 2. c4 {[%clk 0:03:01.1]}
2... g6 {[%clk 0:02:55.3]} 3. Nc3 {[%clk 0:02:59]} 3... Bg7 {[%clk 0:02:55.6]}
4. Bg5 {[%clk 0:02:58.1]} 4... O-O {[%clk 0:02:52.5]} 5. Nf3 {[%clk 0:02:58.2]}
5... d6 {[%clk 0:02:51.9]} 6. e3 {[%clk 0:02:57.9]} 6... c5 {[%clk 0:02:44.9]}
7. d5 {[%clk 0:02:57.4]} 7... Qb6 {[%clk 0:02:44.5]} 8. Qb3 {[%clk 0:02:34.3]}
8... Qxb3 {[%clk 0:02:35.1]} 9. axb3 {[%clk 0:02:34.2]} 9... Na6 {[%clk
0:02:35.4]} 10. Bd3 {[%clk 0:02:22.9]} 10... Nb4 {[%clk 0:02:34.4]} 11. Bb1
{[%clk 0:02:20.2]} 11... h6 {[%clk 0:02:22.1]} 12. Bh4 {[%clk 0:02:18.6]} 12...
g5 {[%clk 0:02:07.1]} 13. Bg3 {[%clk 0:02:18.1]} 13... Nh5 {[%clk 0:02:07.2]}
14. e4 {[%clk 0:01:58]} 14... Bd7 {[%clk 0:01:46]} 15. Nd2 {[%clk 0:01:38.8]}
15... a6 {[%clk 0:01:38.4]} 16. f3 {[%clk 0:01:36.9]} 16... Nxg3 {[%clk
0:01:37.6]} 17. hxg3 {[%clk 0:01:36.6]} 17... b5 {[%clk 0:01:37.3]} 18. g4
{[%clk 0:01:32.2]} 18... Be5 {[%clk 0:01:02]} 19. Rxh6 {[%clk 0:01:05.6]} 19...
Kg7 {[%clk 0:01:01.7]} 20. Rh5 {[%clk 0:01:02]} 20... f6 {[%clk 0:01:01.8]} 21.
Nf1 {[%clk 0:00:58.4]} 21... bxc4 {[%clk 0:01:01.2]} 22. bxc4 {[%clk 0:00:56.2]}
22... Be8 {[%clk 0:00:42.3]} 23. Rh3 {[%clk 0:00:53.2]} 23... Bg6 {[%clk
0:00:42.2]} 24. Kd2 {[%clk 0:00:31.1]} 24... Rh8 {[%clk 0:00:41.7]} 25. Rxh8
{[%clk 0:00:29.6]} 25... Rxh8 {[%clk 0:00:42.6]} 26. Bd3 {[%clk 0:00:27]} 26...
Rh1 {[%clk 0:00:31.9]} 27. Be2 {[%clk 0:00:20.5]} 27... Rg1 {[%clk 0:00:23.9]}
28. g3 {[%clk 0:00:13.9]} 28... Rg2 {[%clk 0:00:15.9]} 29. Ke1 {[%clk
0:00:04.6]} 29... Nc2+ {[%clk 0:00:13.5]} 0-1